bitfinex/quotes_ETHUSD_20250903
["timestamp","ask_amount","ask_price","bid_price","bid_amount"]
[1756928881918,0.687,4477.8,4477.7,6.73628941]
[1756928884422,1.35831741,4477.8,4477.7,6.73628941]
[1756928884637,1.35831741,4477.8,4477.7,6.72906146]
[1756928886052,1.50534915,4477.8,4477.2,1.717]
[1756928886269,6.17595677,4477.5,4477.3,3.711]
[1756928886555,0.7726,4477.4,4477.3,0.792]
[1756928886725,1.47865568,4477.4,4477.3,4.503]
[1756928888069,0.112,4477.4,4477.3,6.73648893]
[1756928888557,0.4084,4477.4,4477.3,6.73648893]
[1756928890667,2.23368848,4476.9,4476.8,0.001]
[1756928890878,3.0,4476.8,4476.1,1.717]
[1756928891050,2.26171063,4476.7,4476.4,0.122]
[1756928891239,11.63294485,4476.5,4476.4,0.122]
[1756928891438,5.23393798,4476.4,4475.8,0.025]
[1756928891654,5.23398789,4476.3,4475.8,0.025]
[1756928891851,5.23398789,4476.3,4475.2,0.001]
[1756928891852,2.23448707,4475.3,4475.2,0.001]
[1756928892287,6.14441815,4475.3,4475.2,0.001]
[1756928892438,6.7884044,4475.3,4475.2,0.001]
[1756928892840,6.7884044,4475.3,4473.8,0.025]
[1756928892841,2.23458693,4475.1,4473.8,0.025]
[1756928893045,11.52289329,4474.4,4474.1,0.544]
[1756928893268,11.52289329,4474.4,4473.8,3.469]
[1756928893269,13.06619221,4474.4,4473.8,3.469]
[1756928893452,13.54039221,4474.4,4473.8,3.469]
[1756928895979,13.43039221,4474.4,4473.8,3.469]
[1756928896187,7.25443544,4474.4,4473.8,3.469]
[1756928896346,13.43039221,4474.4,4473.8,3.469]
[1756928897680,2.23513634,4474.0,4473.8,3.744]
[1756928897889,11.52309311,4474.0,4473.8,3.744]
[1756928898177,11.81949311,4474.0,4473.8,3.744]
[1756928898746,11.81949311,4474.0,4473.8,3.745]
[1756928899547,12.4915173,4474.0,4473.8,3.745]
[1756928907167,12.4915173,4474.0,4473.8,0.026]
[1756928907168,5.2351863,4473.9,4473.8,0.026]
[1756928907383,6.81784215,4473.9,4473.8,0.026]
[1756928907579,7.47844215,4473.9,4473.8,0.026]
[1756928908172,7.36844215,4473.9,4473.8,0.026]
[1756928909312,7.00424215,4473.9,4473.8,0.026]
[1756928910381,6.70784215,4473.9,4473.8,0.026]
[1756928912703,6.70784215,4473.9,4473.8,0.0539]
[1756928914103,7.00344215,4473.9,4473.8,0.0539]
[1756928915535,7.36844215,4473.9,4473.8,0.0539]
[1756928915697,11.08744215,4473.9,4473.8,0.0539]
[1756928920438,11.08744215,4473.9,4473.1,0.001]
[1756928920439,2.23523626,4473.8,4473.1,0.001]
[1756928920630,2.23563603,4473.0,4472.9,0.001]
[1756928920830,5.55918148,4473.0,4472.9,0.001]
[1756928921029,3.0,4472.9,4472.2,2.2026]
[1756928921213,5.60068602,4472.9,4472.2,2.2026]
[1756928921415,6.00497168,4472.9,4472.2,2.2026]
[1756928921615,6.26668661,4472.9,4472.2,2.2026]
[1756928921923,5.90168661,4472.9,4472.2,2.2026]
[1756928922104,5.90168661,4472.9,4472.3,0.4328]
[1756928922545,5.90168661,4472.9,4472.4,0.4836]
[1756928922742,9.62268661,4472.9,4472.4,0.4836]
[1756928924249,9.32708661,4472.9,4472.8,0.3239]
[1756928924538,0.112,4472.9,4472.8,1.2393]
[1756928924912,0.13994607,4472.9,4472.8,0.5096]
[1756928925245,2.58443209,4472.9,4472.8,0.026]
[1756928925446,0.08963576,4473.0,4472.9,2.23568602]
[1756928925743,4.53620757,4474.9,4473.4,0.792]
[1756928925744,0.4836,4473.7,4473.4,0.792]
[1756928925929,0.4836,4473.7,4473.6,0.2979]
[1756928926130,3.0,4473.9,4473.6,1.2133]
[1756928926330,3.0,4473.9,4473.7,0.9154]
[1756928926526,3.0,4473.9,4473.8,1.2133]
[1756928933249,3.0,4474.3,4473.8,1.2133]
[1756928933448,3.0,4474.3,4473.9,0.9154]
[1756928933646,3.0,4474.3,4474.2,0.2979]
[1756928933851,3.0,4474.3,4474.2,1.2133]
[1756928935359,3.0,4474.3,4474.2,0.7815]
[1756928935524,8.27019837,4474.3,4474.2,0.7815]
[1756928937861,8.27019837,4474.3,4474.2,1.2133]
[1756928937862,0.112,4474.3,4474.2,1.2133]
[1756928938063,0.027,4474.8,4474.3,3.02698647]
[1756928938266,0.027,4474.8,4474.5,0.792]
[1756928938466,0.027,4474.8,4474.7,1.0899]
[1756928938773,5.18519837,4474.8,4474.7,4.8169]
[1756928939067,5.18519837,4474.8,4474.7,5.7323]
[1756928939639,0.027,4474.8,4474.7,5.7323]
[1756928939837,5.18519837,4474.8,4474.7,5.7323]
[1756928940041,5.18519837,4474.8,4474.7,7.96708668]
[1756928940662,0.027,4474.8,4474.7,7.96708668]
[1756928940859,0.027,4474.8,4474.7,5.7323]
[1756928948780,0.027,4474.8,4474.7,7.96708668]
[1756928949481,0.027,4474.8,4474.7,5.7323]
[1756928949786,0.027,4474.8,4474.7,7.96708668]
[1756928950088,0.027,4474.8,4474.7,5.7323]
[1756928950697,0.027,4474.8,4474.7,7.96708668]
[1756928951065,0.027,4474.8,4474.7,9.15918724]
[1756928951471,0.027,4474.8,4474.7,9.27118724]
[1756928951856,0.002,4474.9,4474.8,3.02673674]
[1756928952062,0.002,4474.9,4474.8,6.97501161]
[1756928952263,0.002,4474.9,4474.8,7.25843674]
[1756928952485,0.002,4474.9,4474.8,9.22668898]
[1756928959415,0.002,4474.9,4474.8,12.94968898]
[1756928960223,0.002,4474.9,4474.8,9.22668898]
[1756928960392,0.002,4474.9,4474.8,18.22467465]
[1756928960591,0.002,4474.9,4474.8,13.06647628]
[1756928961226,0.002,4474.9,4474.8,13.17847628]
[1756928963629,0.002,4474.9,4474.8,9.45547628]
[1756928963833,0.002,4474.9,4474.8,13.17847628]
[1756928969419,0.002,4474.9,4474.8,13.17947628]
[1756928970434,0.002,4474.9,4474.8,8.98307628]
[1756928970605,0.002,4474.9,4474.8,5.46452404]
[1756928970811,0.002,4474.9,4474.8,9.99212404]
[1756928971045,0.002,4474.9,4474.8,11.21802404]
[1756928971531,0.002,4474.9,4474.8,11.10602404]
[1756928974746,0.002,4474.9,4474.8,6.14452404]
[1756928974909,0.002,4474.9,4474.8,10.62765337]
[1756928975114,0.002,4474.9,4474.8,11.37445337]
[1756928975347,0.002,4474.9,4474.8,11.86815337]
[1756928975726,0.002,4474.9,4474.8,11.43425337]
[1756928976125,0.002,4474.9,4474.8,11.12135337]
[1756928976643,0.002,4474.9,4474.8,11.43425337]
[1756928978051,0.002,4474.9,4474.8,11.59789815]
[1756928978547,0.002,4474.9,4474.8,15.84789815]
[1756928978853,0.002,4474.9,4474.8,15.53499815]
[1756928979021,0.002,4474.9,4474.8,11.80999815]
[1756928979223,0.002,4474.9,4474.8,15.04029815]
[1756928979762,0.1913,4474.9,4474.8,11.15265337]
[1756928980052,0.1913,4474.9,4474.8,14.75986607]
[1756928981425,0.002,4474.9,4474.8,14.75986607]
[1756928981951,0.002,4474.9,4474.8,14.87186607]
[1756928983283,3.0,4474.8,4474.3,0.001]
[1756928983429,3.0,4474.8,4473.4,3.5447]
[1756928983430,3.0,4474.3,4473.4,3.5447]
[1756928983735,3.0,4473.4,4472.8,0.0235]
[1756928983935,10.39388439,4472.9,4472.8,3.7945]
[1756928984151,8.80729837,4472.9,4472.8,3.7945]
[1756928984321,11.92371423,4472.9,4472.8,3.7945]
[1756928985229,12.65703319,4472.9,4472.8,3.7945]
[1756928985434,7.49883482,4472.9,4472.8,3.7945]
[1756928988069,6.76551586,4472.9,4472.8,3.7945]
[1756928989280,6.76551586,4472.9,4472.8,3.7955]
[1756928990479,4.18302984,4472.9,4472.8,3.7955]
[1756928990683,4.52982984,4472.9,4472.8,3.7955]
[1756928991050,6.76551586,4472.9,4472.8,3.7955]
[1756928991964,4.52982984,4472.9,4472.8,3.7955]
[1756928992282,6.76551586,4472.9,4472.8,3.7955]
[1756928993269,6.87751586,4472.9,4472.8,3.7955]
[1756928993581,6.87751586,4472.9,4472.8,3.7925]
[1756928994852,4.64182984,4472.9,4472.8,3.7925]
[1756928995554,6.87751586,4472.9,4472.8,3.7925]
[1756928999151,6.87751586,4472.9,4472.8,0.0245]
[1756928999953,6.53071586,4472.9,4472.8,0.0245]
[1756929000148,4.29502984,4472.9,4472.8,0.0245]
[1756929000355,0.025,4474.8,4473.1,0.792]
[1756929000550,0.025,4474.8,4474.2,2.23503571]
[1756929000775,0.025,4474.8,4474.7,2.53418668]
[1756929001083,0.137,4474.8,4474.7,7.09718668]
[1756929001284,0.137,4474.8,4474.7,8.24867268]
[1756929001451,0.137,4474.8,4474.7,6.013886]
[1756929001652,0.137,4474.8,4474.7,8.24867268]
[1756929002274,0.137,4474.8,4474.7,6.013886]
[1756929002470,0.137,4474.8,4474.7,8.24867268]
[1756929003699,0.137,4474.8,4474.7,6.013886]
[1756929004004,0.137,4474.8,4474.7,5.569186]
[1756929004298,0.137,4474.8,4474.7,7.80397268]
[1756929004500,0.137,4474.8,4474.7,8.24867268]
[1756929005268,0.137,4474.8,4474.7,5.569186]
[1756929005472,0.137,4474.8,4474.7,7.80397268]
[1756929005720,0.137,4474.8,4474.7,8.24867268]
[1756929006370,0.139,4474.8,4474.7,8.24867268]
[1756929008903,0.027,4474.8,4474.7,9.46892824]
[1756929009203,0.027,4474.8,4474.7,9.58092824]
[1756929009417,0.027,4474.8,4474.7,12.58092824]
[1756929009706,1e-08,4474.8,4474.7,12.58092824]
[1756929011277,1e-08,4474.8,4474.7,12.37394224]
[1756929015309,0.002,4475.7,4475.0,3.792]
[1756929015508,0.002,4475.7,4475.3,0.904]
[1756929015719,0.002,4475.7,4475.3,10.21405569]
[1756929015929,1e-08,4475.8,4475.7,3.02628737]
[1756929016078,1e-08,4475.8,4475.7,11.633451]
[1756929016282,1e-08,4475.8,4475.7,12.36638737]
[1756929016516,1e-08,4475.8,4475.7,14.32625984]
[1756929019324,1e-08,4475.8,4475.7,14.49342848]
[1756929020799,1e-08,4475.8,4475.7,10.72742848]
[1756929020986,1e-08,4475.8,4475.7,14.49242848]
[1756929021617,1e-08,4475.8,4475.7,10.72742848]
[1756929021784,1e-08,4475.8,4475.7,13.25572848]
[1756929021989,1e-08,4475.8,4475.7,14.49242848]
[1756929023189,1e-08,4475.8,4475.7,14.32525984]
[1756929025341,1e-08,4475.8,4475.7,14.49496185]
[1756929031005,0.64820001,4475.8,4475.7,5.99328737]
[1756929031205,1e-08,4475.8,4475.7,6.28388737]
[1756929031434,1e-08,4475.8,4475.7,7.54368737]
[1756929031641,1e-08,4475.8,4475.7,7.97248737]
[1756929031851,0.20270001,4475.8,4475.7,3.02628737]
[1756929031997,0.20270001,4475.8,4475.7,6.79528737]
[1756929033371,1e-08,4475.8,4475.7,6.79528737]
[1756929033571,1e-08,4475.8,4475.7,7.87005023]
[1756929033869,0.20510001,4475.8,4475.7,7.87005023]
[1756929034071,1e-08,4475.8,4475.7,6.79528737]
[1756929034446,0.20510001,4475.8,4475.7,6.79528737]
[1756929035387,0.20510001,4475.8,4475.7,3.02628737]
[1756929035596,0.64810001,4475.8,4475.6,0.001]
[1756929035749,0.64810001,4475.8,4475.7,3.768]
[1756929035972,0.64810001,4475.8,4475.7,4.56]
[1756929037908,0.64810001,4475.8,4475.7,4.559]
[1756929038108,0.64810001,4475.8,4475.7,0.792]
[1756929038269,0.64810001,4475.8,4475.7,4.559]
[1756929038474,0.20510001,4475.8,4475.7,4.559]
[1756929038813,0.64810001,4475.8,4475.7,4.559]
[1756929039228,0.64810001,4475.8,4475.6,0.001]
[1756929039519,5.26221596,4475.7,4475.6,0.001]
[1756929039724,7.48400399,4475.7,4475.6,0.001]
[1756929039902,8.13320399,4475.7,4475.6,0.001]
[1756929040291,7.75960989,4475.7,4475.6,0.001]
[1756929041020,7.87160989,4475.7,4475.6,0.001]
[1756929041191,7.87160989,4475.7,4475.2,0.001]
[1756929041192,2.23448707,4475.3,4475.2,0.001]
[1756929041388,6.09337732,4475.3,4475.2,0.001]
[1756929041589,6.74257732,4475.3,4475.2,0.001]
[1756929047043,6.39567732,4475.3,4475.2,0.001]
[1756929047527,6.74257732,4475.3,4475.2,0.001]
[1756929047881,6.39567732,4475.3,4475.2,0.001]
[1756929049178,6.74257732,4475.3,4475.2,0.001]
[1756929050077,16.98517466,4475.3,4475.2,0.001]
[1756929054041,6.39567732,4475.3,4475.2,0.001]
[1756929054201,0.112,4475.3,4475.2,0.7594]
[1756929054407,0.112,4475.3,4475.2,1.1882]
[1756929054935,0.112,4475.3,4475.2,0.7594]
[1756929055451,0.112,4475.3,4475.2,0.001]
[1756929055655,2.99458707,4475.3,4475.2,0.001]
[1756929055950,3.92481819,4475.3,4475.2,0.001]
[1756929056253,1.04223112,4475.3,4475.2,0.2916]
[1756929056552,1.01430004,4475.3,4475.2,0.7594]
[1756929056752,2.34648707,4475.3,4475.2,0.7594]
[1756929057056,2.34648707,4475.3,4475.2,0.4688]
[1756929059323,0.112,4475.3,4475.2,0.4688]
[1756929060163,2.34648707,4475.3,4475.2,0.4688]
[1756929060974,2.34648707,4475.3,4475.2,0.001]
[1756929061483,0.112,4475.3,4475.2,0.296]
[1756929061769,2.34648707,4475.3,4475.2,0.7604]
[1756929062068,2.34648707,4475.3,4475.2,0.4654]
[1756929062364,2.34648707,4475.3,4475.2,0.001]
[1756929062670,0.112,4475.3,4475.2,0.001]
[1756929062847,2.34648707,4475.3,4475.2,0.4654]
[1756929063057,0.112,4475.3,4475.2,0.7604]
[1756929063363,0.112,4475.3,4475.2,1.2226]
[1756929064822,0.112,4475.3,4475.2,2.0146]
[1756929065018,0.112,4475.4,4475.2,2.81652868]
[1756929065224,0.112,4475.4,4475.3,0.9266]
[1756929065626,0.112,4475.4,4475.3,1.2216]
[1756929065959,0.112,4475.4,4475.3,0.4644]
[1756929066148,0.13993046,4475.4,4475.3,0.4644]
[1756929066653,0.13993046,4475.4,4475.2,0.793]
[1756929067224,0.112,4475.4,4475.2,1.2574]
[1756929067425,0.112,4475.4,4475.2,0.001]
[1756929067426,0.32193108,4475.3,4475.2,0.001]
[1756929067653,0.32193108,4475.3,4475.2,3.765]
[1756929067654,0.02793108,4475.3,4475.2,3.765]
[1756929067834,0.112,4475.4,4475.2,4.5222]
[1756929068034,0.112,4475.4,4475.3,0.4622]
[1756929068243,0.112,4475.4,4475.3,0.9266]
[1756929068460,0.112,4475.4,4475.3,1.2216]
[1756929071555,5.26663651,4475.4,4475.3,1.2216]
[1756929072259,5.26663651,4475.4,4475.3,1.2442]
[1756929072632,5.26663651,4475.4,4475.3,0.0226]
[1756929072633,5.44823651,4475.4,4475.3,0.0226]
[1756929072835,7.68267365,4475.4,4475.3,0.0226]
[1756929073036,5.44823651,4475.4,4475.3,0.0226]
[1756929073773,5.26663651,4475.4,4475.3,1.2442]
[1756929075364,5.26663651,4475.4,4475.3,0.782]
[1756929075867,5.26663651,4475.4,4475.3,1.2442]
[1756929076169,0.002,4475.6,4475.5,3.02638721]
[1756929076345,1e-08,4475.8,4475.7,2.23428737]
[1756929076550,1e-08,4475.8,4475.7,2.52928737]
[1756929076750,1e-08,4475.8,4475.7,3.45588737]
[1756929077073,1e-08,4475.8,4475.7,4.24788737]
[1756929077270,1e-08,4475.8,4475.7,5.57827846]
[1756929077575,1e-08,4475.8,4475.7,5.56711483]
[1756929077938,1e-08,4475.8,4475.7,8.56711483]
[1756929081274,1e-08,4475.8,4475.7,12.32911483]
[1756929082341,1e-08,4475.8,4475.7,12.32711483]
[1756929084379,1e-08,4476.3,4476.2,3.02603779]
[1756929084552,0.025,4477.8,4476.2,3.02603779]
[1756929084553,0.025,4477.8,4476.9,2.23368848]
[1756929084888,0.025,4477.8,4477.7,3.13728941]
[1756929085060,0.025,4477.8,4477.7,6.89828941]
[1756929085267,0.025,4477.8,4477.7,8.11988941]
[1756929088881,0.025,4477.8,4477.7,7.65768941]
[1756929089082,0.025,4477.8,4477.7,8.64679443]
[1756929091579,0.025,4477.8,4477.7,9.07639443]
[1756929091953,0.025,4477.8,4477.7,8.64679443]
[1756929092584,0.025,4477.8,4477.7,9.07639443]
[1756929093491,0.027,4477.8,4477.7,9.07639443]
[1756929094062,0.027,4477.8,4477.7,8.64679443]
[1756929094493,0.027,4477.8,4477.7,9.09899443]
[1756929102155,0.027,4477.8,4477.7,4.14899443]
[1756929102480,0.027,4477.8,4477.7,6.91088941]
[1756929102683,0.027,4477.8,4477.7,7.39828941]
[1756929102860,0.027,4477.8,4477.7,7.70348941]
[1756929105266,0.027,4477.8,4477.7,8.13308941]
[1756929105666,0.027,4477.8,4477.7,7.39828941]
[1756929106068,0.027,4477.8,4477.7,8.13308941]
[1756929106269,0.027,4477.8,4477.7,9.16973443]
[1756929107274,0.027,4477.8,4477.7,8.43493443]
[1756929107604,0.027,4477.8,4477.7,7.39828941]
[1756929108506,0.027,4477.8,4477.7,7.70348941]
[1756929109903,0.027,4477.8,4477.7,8.13308941]
[1756929113301,0.027,4477.8,4477.7,9.85008941]
[1756929116789,0.002,4478.7,4478.6,3.02484061]
[1756929117103,0.002,4478.7,4478.6,8.48784061]
[1756929117308,0.002,4478.7,4478.6,9.71004061]
[1756929117613,0.002,4478.7,4478.6,9.82204061]
[1756929127041,1e-08,4478.8,4478.7,3.02479076]
[1756929127242,1e-08,4478.8,4478.7,5.41006793]
[1756929127410,1e-08,4478.8,4478.7,5.70446793]
[1756929130328,3.002,4479.2,4479.1,6.02459136]
[1756929130329,1e-08,4479.2,4479.1,6.02459136]
[1756929130515,1e-08,4479.2,4479.1,11.98849136]
[1756929130843,1e-08,4479.2,4479.1,15.73049136]
[1756929131139,1e-08,4479.2,4479.1,17.82120638]
[1756929131343,1e-08,4479.2,4479.1,18.28980638]
[1756929131921,0.21990001,4479.2,4479.1,2.34459136]
[1756929132138,0.64830001,4479.2,4479.1,6.08659136]
[1756929132342,0.21990001,4479.2,4479.1,6.08659136]
[1756929132649,0.002,4482.5,4481.7,3.02329615]
[1756929132846,0.002,4482.5,4481.7,6.3652]
[1756929132847,0.4555,4481.8,4481.7,6.3652]
[1756929133049,0.6754,4481.8,4481.7,8.59649615]
[1756929133349,0.6754,4481.8,4481.7,4.85049615]
[1756929133567,0.6754,4481.8,4481.7,8.65349615]
[1756929134020,0.6754,4481.8,4481.7,8.86062837]
[1756929134223,0.025,4481.8,4481.7,8.86062837]
[1756929134426,0.315,4481.8,4481.7,8.86062837]
[1756929134838,0.315,4481.8,4481.7,8.65349615]
[1756929135030,0.315,4481.8,4481.7,8.86042355]
[1756929135733,0.315,4481.8,4481.7,8.86442355]
[1756929136944,0.025,4481.8,4481.7,9.64672355]
[1756929137446,0.2449,4481.8,4481.7,8.86442355]
[1756929137922,0.2449,4481.8,4481.7,8.88702355]
[1756929138944,0.2449,4481.8,4481.7,8.88502355]
[1756929139319,0.2449,4481.8,4481.7,5.08002355]
[1756929139521,0.6733,4481.8,4481.7,8.88402355]
[1756929140235,0.2449,4481.8,4481.7,8.88402355]
[1756929141550,0.025,4481.8,4481.7,8.88402355]
[1756929141718,0.247,4481.8,4481.7,8.88402355]
[1756929142057,0.247,4481.8,4481.7,8.88202355]
[1756929142268,0.6734,4481.8,4481.7,8.88202355]
[1756929142554,0.38140631,4481.8,4481.7,8.88102355]
[1756929142755,0.6734,4481.8,4481.7,8.88002355]
[1756929143260,0.6754,4481.8,4481.7,5.7455274]
[1756929143464,1.34619504,4481.8,4481.7,5.7455274]
[1756929145756,1.34819504,4481.8,4481.7,5.7455274]
[1756929145934,2.33450389,4481.8,4481.7,5.7455274]
[1756929146659,2.33450389,4481.8,4481.7,10.01972355]
[1756929146660,1e-08,4481.8,4481.7,10.01972355]
[1756929146858,1e-08,4481.9,4481.8,3.02324637]
[1756929147066,1e-08,4481.9,4481.8,9.65987377]
[1756929147375,1e-08,4481.9,4481.8,9.95427377]
[1756929147678,1e-08,4481.9,4481.8,12.22218174]
[1756929148374,0.025,4482.8,4482.7,3.0227984]
[1756929148375,1e-08,4482.8,4482.7,3.0227984]
[1756929148579,1e-08,4482.8,4482.7,8.8639258]
[1756929148766,1e-08,4482.8,4482.7,10.1148258]
[1756929149280,1e-08,4482.8,4482.7,9.6462258]
[1756929151587,1e-08,4482.8,4482.7,10.0962258]
[1756929152584,1e-08,4482.8,4482.7,9.6462258]
[1756929152954,1e-08,4482.8,4482.7,10.0962258]
[1756929153279,1e-08,4482.8,4482.7,11.34575044]
[1756929153841,1e-08,4482.8,4482.7,14.34575044]
[1756929154350,1e-08,4482.8,4482.7,14.43514011]
[1756929155247,1e-08,4482.8,4482.7,14.44214011]
[1756929156513,1e-08,4482.8,4482.7,10.62714011]
[1756929156810,1e-08,4482.8,4482.7,13.90175044]
[1756929157105,1e-08,4482.8,4482.7,12.32645044]
[1756929157390,1e-08,4482.8,4482.7,14.34385044]
[1756929158688,1e-08,4482.8,4482.7,13.89385044]
[1756929159489,1e-08,4482.8,4482.7,14.34385044]
[1756929160560,1e-08,4482.8,4482.7,14.36645044]
[1756929161690,1e-08,4482.8,4482.7,10.60435044]
[1756929161889,1e-08,4482.8,4482.7,10.91645044]
[1756929162592,0.17610001,4482.8,4482.7,8.0955258]
[1756929162793,0.64790001,4482.8,4482.7,8.0955258]
[1756929162975,0.64790001,4482.8,4482.7,8.8875258]
[1756929163172,0.64990001,4482.8,4482.7,5.8647274]
[1756929163376,0.64990001,4482.8,4482.7,8.0955258]
[1756929163572,0.64990001,4482.8,4482.7,5.8647274]
[1756929163774,0.64990001,4482.8,4482.7,2.0557274]
[1756929163967,0.64990001,4482.8,4482.7,8.0955258]
[1756929164171,0.64990001,4482.8,4482.7,7.8885984]
[1756929164374,0.64790001,4482.8,4482.7,7.8885984]
[1756929165767,0.64790001,4482.8,4482.7,5.6578]
[1756929166093,0.64790001,4482.8,4482.7,6.4498]
[1756929166804,0.64790001,4482.8,4482.7,8.6805984]
[1756929168602,1e-08,4482.8,4482.7,8.6805984]
[1756929168801,0.28950001,4482.8,4482.7,8.6805984]
[1756929169602,0.64900001,4482.8,4482.7,8.6805984]
[1756929170212,0.64900001,4482.8,4482.7,6.4498]
[1756929170773,0.78295942,4482.8,4482.7,1.8488]
[1756929171108,0.78295942,4482.8,4482.7,5.6508]
[1756929171431,0.78095942,4482.8,4482.7,5.5396]
[1756929171601,0.89215942,4482.8,4482.7,5.5396]
[1756929175831,0.40070001,4482.8,4482.7,7.7703984]
[1756929175989,1e-08,4482.8,4482.7,9.3377984]
[1756929177783,1e-08,4482.8,4482.7,9.7877984]
[1756929178289,1e-08,4482.8,4482.7,9.3377984]
[1756929178715,1e-08,4482.8,4482.7,9.7877984]
[1756929180310,0.19640001,4482.8,4482.7,2.5296]
[1756929180509,0.19640001,4482.8,4482.7,6.3266]
[1756929180716,0.19640001,4482.8,4482.7,6.3256]
[1756929180915,0.19640001,4482.8,4482.7,8.5563984]
[1756929181103,0.19640001,4482.8,4482.7,6.3256]
[1756929181627,1e-08,4482.8,4482.7,8.5563984]
[1756929182125,1e-08,4482.8,4482.7,9.3502984]
[1756929182926,0.00200001,4482.8,4482.7,9.3502984]
[1756929183222,0.00200001,4482.8,4482.7,9.7989984]
[1756929183891,0.00200001,4482.8,4482.7,6.3256]
[1756929184420,0.00200001,4482.8,4482.7,6.3226]
[1756929184822,0.00200001,4482.8,4482.7,7.1165]
[1756929185121,0.00200001,4482.8,4482.7,6.3226]
[1756929185122,0.19840001,4482.8,4482.7,6.3226]
[1756929185822,0.00200001,4482.8,4482.7,6.3226]
[1756929186517,0.00200001,4482.8,4482.7,9.3472984]
[1756929186718,0.29190001,4482.8,4482.7,2.5296]
[1756929186922,0.29190001,4482.8,4482.7,6.3216]
[1756929190522,0.00200001,4482.8,4482.7,9.7949984]
[1756929191122,0.00200001,4482.8,4482.7,7.1155]
[1756929191633,0.29190001,4482.8,4482.7,6.3216]
[1756929191789,0.83472213,4482.8,4482.7,1.7376]
[1756929191989,1.30502213,4482.8,4482.7,5.5246]
[1756929192190,3.53577076,4482.8,4482.7,5.5246]
[1756929194007,0.65602213,4482.8,4482.7,5.5246]
[1756929194327,0.30960001,4482.8,4482.7,5.5246]
[1756929195805,0.11320001,4482.8,4482.7,8.9979984]
[1756929196143,0.00200001,4482.8,4482.7,9.7899984]
[1756929196339,0.00200001,4482.8,4482.7,7.5592]
[1756929196512,0.00200001,4482.8,4482.7,9.7899984]
[1756929198235,0.00200001,4482.8,4482.7,7.1105]
[1756929198820,0.19840001,4482.8,4482.7,6.3166]
[1756929199020,0.00200001,4482.8,4482.7,6.3166]
[1756929199344,0.00200001,4482.8,4482.7,7.1105]
[1756929199844,0.00200001,4482.8,4482.7,9.7899984]
[1756929200025,0.00200001,4482.8,4482.7,7.1105]
[1756929200220,0.00200001,4482.8,4482.7,6.3166]
[1756929200425,0.19840001,4482.8,4482.7,6.3166]
[1756929200811,0.00200001,4482.8,4482.7,6.3166]
[1756929201014,0.00200001,4482.8,4482.7,7.1105]
[1756929201242,0.00200001,4482.8,4482.7,2.5296]
[1756929201447,0.00200001,4482.8,4482.7,5.5206]
[1756929203466,0.00200001,4482.8,4482.7,6.0032]
[1756929203656,0.00200001,4482.8,4482.7,5.5206]
[1756929204468,7.56546981,4482.8,4482.7,1.7376]
[1756929204670,6.32545457,4482.8,4482.7,5.5216]
[1756929205378,8.5562032,4482.8,4482.7,5.5206]
[1756929205588,6.77715457,4482.8,4482.7,5.5206]
[1756929205893,6.32545457,4482.8,4482.7,5.5206]
[1756929206790,8.5562032,4482.8,4482.7,5.5206]
[1756929206968,6.32545457,4482.8,4482.7,5.5206]
[1756929207483,8.5562032,4482.8,4482.7,5.5206]
[1756929209237,6.32545457,4482.8,4482.7,5.5206]
[1756929209846,8.5562032,4482.8,4482.7,5.5206]
[1756929210245,6.32545457,4482.8,4482.7,5.5206]
[1756929210442,8.5562032,4482.8,4482.7,5.5206]
[1756929210847,8.5562032,4482.8,4482.7,1.7376]
[1756929211077,8.5562032,4482.8,4482.7,0.0226]
[1756929211375,8.5562032,4482.8,4482.0,4.6812]
[1756929211376,3.24153259,4482.7,4481.4,3.781]
[1756929211577,2.2311468,4482.0,4481.4,3.781]
[1756929211878,5.45808654,4481.9,4481.6,3.781]
[1756929212077,6.5695377,4481.9,4481.6,3.781]
[1756929213573,3.781,4482.4,4481.8,0.7776]
[1756929213778,5.13632117,4482.0,4481.8,0.7776]
[1756929214149,7.36749155,4482.0,4481.8,0.7776]
[1756929214573,5.13632117,4482.0,4481.8,0.7776]
[1756929215278,7.36749683,4482.0,4481.8,0.7776]
[1756929216683,2.23119659,4481.9,4481.8,0.001]
[1756929216978,3.19105401,4481.9,4481.8,0.001]
[1756929218178,0.95985742,4481.9,4481.8,0.001]
[1756929218380,3.19105401,4481.9,4481.8,0.001]
[1756929218977,3.47625401,4481.9,4481.8,0.001]
[1756929219667,3.19105401,4481.9,4481.8,0.001]
[1756929220969,3.47625401,4481.9,4481.8,0.001]
[1756929221170,11.02264712,4481.9,4481.8,0.001]
[1756929221480,11.10795717,4481.9,4481.8,0.001]
[1756929223167,2.23144553,4481.4,4481.3,0.001]
[1756929223489,7.50685976,4481.4,4481.3,0.001]
[1756929223782,7.7641667,4481.4,4481.3,0.001]
[1756929224198,5.24752117,4481.4,4481.3,0.001]
[1756929224396,5.24752117,4481.4,4481.3,1.2171]
[1756929224691,5.81500125,4481.4,4481.3,1.2171]
[1756929224900,8.04644678,4481.4,4481.3,0.4684]
[1756929225588,5.81500125,4481.4,4481.3,0.7776]
[1756929225986,5.81500125,4481.4,4481.3,1.2171]
[1756929226195,0.1112,4481.4,4481.3,1.2171]
[1756929226364,5.24752117,4481.4,4481.3,0.7776]
[1756929226564,5.13632117,4481.4,4481.3,1.2171]
[1756929229697,5.13632117,4481.4,4481.3,1.2395]
[1756929232597,8.13632117,4481.4,4481.3,1.2395]
[1756929235293,0.00200001,4482.8,4481.6,0.792]
[1756929235488,0.00200001,4482.8,4482.1,3.02309703]
[1756929235813,5.13632117,4482.6,4482.1,7.10829703]
[1756929236100,5.13632117,4482.6,4482.1,8.01519703]
[1756929236804,5.13632117,4482.6,4482.1,4.23919703]
[1756929237094,5.13632117,4482.6,4482.1,8.01419703]
[1756929237502,0.00200001,4482.8,4482.1,8.01419703]